Cogmind - Beta 13 X1 @@@ ROGUE MODE // 2023.08.06 @ 02:33:18 Player: Schmee Result: Destroyed by S-43 Plague with Heavy Machine Gun Performance ------------- Evolutions (9) 4500 Regions Visited (18) 3600 Robots Destroyed (172) 860 Value Destroyed (8173) 8173 Prototype IDs (12) 240 Alien Tech Used (2) 400 Bonus (8045) 8045 TOTAL SCORE: 25818 Bonus ------- High Alert Combat Kills 1559 Entered DSFs 500 Met Warlord at Base 500 MAIN.C Attacked Warlord 500 Warlord Defense Kills 1084 Met Warlord at Research 2000 Invited to Help at Command 2000 Friendly Fire -98 Cogmind --------- Core Integrity 0/1600 Matter 177/300 Energy 99/100 System Corruption 38% Temperature Cool (0) Movement Core (50) Location -1/Access Parts ------- > --- POWER (2) -------- (None) > --- PROPULSION (6) --- (None) > --- UTILITY (14) ----- (None) > --- WEAPON (3) ------- (None) > --- INVENTORY (5) ---- Focal Shield Advanced Force Field Terrabomb Vortex Shotgun (13) Peak State ------------ > --- POWER ------------ Particle Reactor Improved Quantum Reactor > --- PROPULSION ------- Armored Heavy Treads High-density Centrium Heavy Treads High-density Centrium Heavy Treads > --- UTILITY ---------- Advanced Heat Sink Advanced Cooling System High-capacity Storage Unit Advanced Visual Processing Unit Advanced Sensor Array Advanced Signal Interpreter Terrain Scan Processor Advanced Terrain Scan Processor Advanced Launcher Guidance Computer Improved Cloaking Device Heavy Armor Plating Improved Force Field Drone Bay > --- WEAPON ----------- Enhanced Nova Cannon Helical Railgun Enhanced Force Lance > --- INVENTORY -------- Micro Antimatter Reactor Micro Antimatter Reactor Armored Heavy Treads Layered Medium Armor Plating Focal Shield Advanced Thermal Shield Advanced Force Field System Shield Field Recycling Unit Drone Bay Subatomic Replicator Terrabomb Terrabomb Vortex Shotgun Heavy Linear Accelerator Tesla Bomb Launcher Tesla Bomb Launcher RU-N14's Throwing Claymores v3 [Rating: 179] Favorites ----------- Power Micro Antimatter Reactor Engine Ion Engine Power Core Micro Fission Core Reactor Micro Antimatter Reactor Propulsion Improved VTOL Module Treads Armored Heavy Treads Leg Aluminum Leg Wheel Compact Wheel Hover Unit Improved Antigrav System Flight Unit Improved VTOL Module Utility Terrain Scan Processor Device Advanced Heat Sink Storage High-capacity Storage Unit Processor Terrain Scan Processor Hackware System Shield Protection Heavy Armor Plating Weapon Tesla Bomb Launcher Energy Gun Vortex Shotgun Energy Cannon Enhanced Nova Cannon Ballistic Gun Helical Railgun Ballistic Cannon Linear Accelerator Launcher Tesla Bomb Launcher Special Weapon RU-N14's Throwing Claymores v3 Impact Weapon Heavy Mace Slashing Weapon Great Axe Piercing Weapon Enhanced Force Lance Build | -11 -10 -9 -8 -7 -6 -6 -6 -6 -5 -4 -4 -4 -4 -3 -3 -3 -2 -1 ------- Run | Jun Mat Mat Mat Fac Fac Was Fac DSF Fac Fac Upp Upp War Pro Res Qua Res Acc Slots Evolved 18 | . . 2 2 2 2 . . . 2 2 . . . . 2 . 2 2 Power 1 | . . . . . . . . . 1 . . . . . . . . . Propulsion 4 | . . 1 1 . . . . . 1 1 . . . . . . . . Utility 12 | . . 1 1 2 2 . . . . 1 . . . . 1 . 2 2 Weapon 1 | . . . . . . . . . . . . . . . 1 . . . Parts Attached 227 | 1 9 4 2 9 3 5 . 4 13 4 2 8 9 10 62 16 28 38 Power 27 | . 2 . . 1 . 1 . 1 2 . . 1 . 2 8 1 2 6 Engine 7 | . 2 . . . . 1 . . . . . 1 . . 3 . . . Core 4 | . . . . 1 . . . 1 2 . . . . . . . . . Reactor 16 | . . . . . . . . . . . . . . 2 5 1 2 6 Propulsion 41 | . 2 1 2 2 . 1 . . 3 2 1 1 . 3 12 . 10 1 Treads 13 | . . . . . . . . . . . . . . . 4 . 8 1 Leg 1 | . . . . . . . . . . . . . . 1 . . . . Wheel 7 | . . . . . . . . . . . . . . . 5 . 2 . Hover 3 | . . . . . . . . . . . . . . . 3 . . . Flight 17 | . 2 1 2 2 . 1 . . 3 2 1 1 . 2 . . . . Utility 72 | 1 3 1 . 4 3 1 . 3 8 1 . 1 1 . 23 5 9 8 Device 47 | 1 2 1 . 4 1 1 . . 6 1 . 1 1 . 12 4 6 6 Storage 2 | . . . . . . . . . . . . . . . 2 . . . Processor 17 | . 1 . . . . . . 3 1 . . . . . 8 1 2 1 Hackware 1 | . . . . . 1 . . . . . . . . . . . . . Protection 5 | . . . . . 1 . . . 1 . . . . . 1 . 1 1 Artifact . | . . . . . . . . . . . . . . . . . . . Weapon 87 | . 2 2 . 2 . 2 . . . 1 1 5 8 5 19 10 7 23 Energy Gun 8 | . . . . . . . . . . . . . 2 1 2 1 . 2 Energy Cannon 4 | . . . . . . . . . . . . . . . . 2 . 2 Ballistic Gun 7 | . 2 1 . . . . . . . . . . . . . . 1 3 Ballistic Cannon 8 | . . . . . . . . . . . . . . . 5 1 . 2 Launcher 31 | . . . . 1 . . . . . 1 1 3 1 1 6 3 4 10 Special Weapon 10 | . . . . . . . . . . . . . 5 2 1 1 . 1 Impact Weapon 1 | . . 1 . . . . . . . . . . . . . . . . Slashing Weapon 1 | . . . . 1 . . . . . . . . . . . . . . Piercing Weapon 17 | . . . . . . 2 . . . . . 2 . 1 5 2 2 3 Special Melee Weapon . | . . . . . . . . . . . . . . . . . . . Unidentified Prototypes 14 | . . . 1 1 . . . . 2 . . . 2 . 2 1 5 . Corrupted Parts 1 | . . . . . . . . . . . . . . 1 . . . . System Corruption 4 | . . . . . . . . . . . . . . 4 . . . . Parts Lost 73 | . . . 1 . . . . 1 . . 1 9 . 9 16 9 1 26 Power 10 | . . . . . . . . . . . . 2 . 2 2 . . 4 Propulsion 18 | . . . 1 . . . . . . . 1 3 . 3 6 2 . 2 Utility 30 | . . . . . . . . 1 . . . 2 . 4 6 3 1 13 Weapon 15 | . . . . . . . . . . . . 2 . . 2 4 . 7 Highest Loss Streak 9 | . . . 1 . . . . 1 . . 1 6 . 4 7 5 1 9 To Critical Strikes 1 | . . . . . . . . . . . . . . . . . . 1 Average Slot Usage (%) 76 | . 93 100 87 85 91 93 93 89 92 93 89 81 56 44 80 74 74 70 Engine 1 | . 14 11 9 1 . 3 6 1 . . . 3 1 . 2 . . . Core 1 | . . . . 6 6 3 . 4 11 10 10 5 5 . . . . . Reactor 4 | . . . . . . . . . . . . . . 4 4 9 8 6 Treads 4 | . . . . . . . . . . . . . . . 6 7 5 10 Wheel 2 | . . . . . . . . . . . . . . . 7 4 3 . Flight 8 | . 11 33 33 30 26 26 26 26 29 29 26 28 15 7 . . . . Device 16 | . 18 22 18 26 36 33 33 24 17 23 25 17 15 10 12 8 15 19 Storage 2 | . 8 . . . . . . . . . . . . . 3 4 4 3 Processor 15 | . 1 11 9 7 6 6 6 11 15 10 10 10 10 10 20 22 20 17 Hackware 1 | . . . . . 2 6 6 6 5 5 5 5 5 5 1 . . . Protection 1 | . . . . . 5 6 6 6 5 5 5 4 . . . 3 2 3 Ballistic Gun 2 | . 13 19 9 . . . . . . . . . . . . . 3 3 Ballistic Cannon 1 | . . . . . . . . . . . . . . . 3 2 . . Launcher 1 | . . . . 4 . . . . . 2 . 2 . . . 3 5 1 Piercing Weapon 2 | . . . . . . 4 6 6 5 5 4 2 . . 3 2 2 2 Naked Turns 138 | . . . . . . . . . . . . . . . . . . 138 Heaviest Build 144 | 12 14 11 11 19 18 20 20 20 21 30 30 31 18 25 111 112 124 144 Greatest Support 240 | 20 20 12 18 19 19 21 21 21 26 33 33 36 15 21 60 95 240 240 Greatest Overweight (x) 12 | . . . . . . . . . . . . . 4 8 5 11 12 . Average Overweight (x) . | . . . . . . . . . . . . . . 1 1 5 4 . Largest Inventory Capacity 20 | 8 8 5 5 5 5 5 5 5 5 5 5 5 5 5 20 20 20 20 Average Capacity 11 | 8 6 5 5 5 5 5 5 5 5 5 5 5 5 5 10 20 20 18 Most Carried 20 | 7 8 5 5 5 5 5 5 5 5 5 5 4 5 5 10 20 20 20 Average Carried 10 | 6 6 4 4 4 5 4 5 5 4 4 4 2 3 4 8 16 18 17 Final Capacity 20 | 8 5 5 5 5 5 5 5 5 5 5 5 5 5 5 20 20 20 5 Final Carried 20 | 7 5 5 5 5 5 5 5 5 5 4 4 2 5 5 10 18 20 4 Class Distribution -------------------- 30% | Scavenger-Mutant 23% | Scavenger-Assassin 21% | Scout 12% | Mutant 6% | Scavenger-Scout 3% | Scavenger-Skirmisher Dominant Class ---------------- Mutant | -10/Materials Scavenger-Scout | -9/Materials Scavenger-Scout | -8/Materials Scout | -7/Factory Scout | -6/Factory Scout | -6/Waste Scout | -6/Factory Scout | -6/DSF Scout | -5/Factory Scout | -4/Factory Scout | -4/Upper Caves Scout | -4/Upper Caves Scout | -4/Warlord Mutant | -3/Proximity Caves Scavenger-Mutant | -3/Research Scavenger-Skirmisher | -3/Quarantine Scavenger-Mutant | -2/Research Scavenger-Assassin | -1/Access Resources | -11 -10 -9 -8 -7 -6 -6 -6 -6 -5 -4 -4 -4 -4 -3 -3 -3 -2 -1 ----------- Run | Jun Mat Mat Mat Fac Fac Was Fac DSF Fac Fac Upp Upp War Pro Res Qua Res Acc Matter Collected 4306 | 213 131 . 68 159 10 50 . . 34 . 266 51 349 136 1064 383 517 875 Remotely 1000 | . . . . . . . . . . . . . . . 602 . . 398 Salvage Created 6303 | 27 154 . . 246 31 . . . 34 . 19 252 135 140 1222 682 342 3019 Parts 324 | 3 15 . . 16 3 . . . 2 . 1 14 2 6 74 35 12 141 Haulers Intercepted . | . . . . . . . . . . . . . . . . . . . Recyclers Shooed 2 | 1 . . . . . . . . . . . . . . . . . 1 Parts Field Recycled 10 | . . . . . . . . . . . . . . . 10 . . . Retrieved Matter 91 | . . . . . . . . . . . . . . . 91 . . . Parts Self-Destructed 16 | . . . . . . . . . . . 6 8 . 2 . . . . Prevented . | . . . . . . . . . . . . . . . . . . . Kills | -11 -10 -9 -8 -7 -6 -6 -6 -6 -5 -4 -4 -4 -4 -3 -3 -3 -2 -1 ------- Run | Jun Mat Mat Mat Fac Fac Was Fac DSF Fac Fac Upp Upp War Pro Res Qua Res Acc Combat Hostiles Destroyed 125 | . 4 . . 4 . . . . . . 5 11 8 8 24 14 3 44 Melee 5 | . . . . . . . . . . . . . . . 3 2 . . Guns 17 | . 4 . . . . . . . . . . . . 2 5 . . 6 Cannons 22 | . . . . . . . . . . . . . . . 6 4 . 12 AOE 72 | . . . . 4 . . . . . . 5 11 8 6 10 8 1 19 Classes Destroyed 18 | 1 3 . . 2 . . . . . . . 1 1 3 2 2 . 3 Worker 15 | . . . . . . . . . . . . . . . 1 4 . 10 Builder 9 | . . . . 1 . . . . . . . . . . 1 1 2 4 Tunneler 6 | 1 . . . 2 . . . . . . . . . . 2 . . 1 Recycler 7 | . . . . 1 . . . . . . . . . . 3 . . 3 Minesweeper 1 | . . . . . . . . . . . . . . 1 . . . . Mechanic 1 | . . . . . . . . . . . . . 1 . . . . . Operator 1 | . . . . . . . . . . . . . . . . 1 . . Watcher 7 | . 3 . . 1 1 . . . 1 . . . . . 1 . . . Swarmer 43 | . 3 . . 4 . . . . . . 5 8 . 5 3 . . 15 Saboteur 1 | . . . . . . . . . . . . . . . . . . 1 Grunt 32 | . 1 . . . . . . . . . . 1 8 1 4 10 . 7 Brawler 1 | . . . . . . . . . . . . . . . . . . 1 Duelist 1 | . . . . . . . . . . . . . . . . 1 . . Protector 1 | . . . . . . . . . . . . . . . . . . 1 Sentry 2 | . . . . . . . . . . . . . . . 1 . 1 . Hunter 15 | . . . . . . . . . . . . 2 . . 4 . 2 7 Programmer 29 | . . . . . . . . . . . . . . 2 12 3 . 12 Samaritan 2 | . . . . . . . . . . . . . . 2 . . . . Best Kill Streak 15 | 1 3 . . 4 1 . . . 1 . 5 12 9 5 4 9 2 15 Combat Bots Only 12 | . 3 . . 4 . . . . . . 5 12 8 5 4 7 2 11 Max Kills in Single Turn 6 | 1 1 . . 2 1 . . . 1 . 4 3 4 2 3 6 1 6 Gunslinging . | . . . . . . . . . . . . . . . . . . . Exploded 5 | . . . . 2 . . . . . . 4 3 3 1 3 4 1 5 Melee 1 | . . . . . . . . . . . . . . . 1 1 . . Uniques/NPCs Destroyed . | . . . . . . . . . . . . . . . . . . . Combat | -11 -10 -9 -8 -7 -6 -6 -6 -6 -5 -4 -4 -4 -4 -3 -3 -3 -2 -1 -------- Run | Jun Mat Mat Mat Fac Fac Was Fac DSF Fac Fac Upp Upp War Pro Res Qua Res Acc Damage Taken 15389 | . 69 . 72 118 . . . 83 . . 413 622 157 830 3350 2038 425 7212 Core 2979 | . 8 . 15 18 . . . . . . 144 188 39 393 275 269 26 1604 Absorbed by Shields 284 | . . . . . . . . . . . . . . . . . . 284 Redirected to Shielding 103 | . . . . . . . . 28 . . 55 20 . . . . . . Regen/Repaired (Parts) 55 | . . . . . . . . . . . . . 55 . . . . . Core Remaining (%) 87 | 100 96 100 97 97 . . . 100 100 . . . . 33 . 58 98 . Volleys Fired 220 | 3 21 . . 3 . . . . . 1 3 15 8 12 55 14 7 78 Largest 3 | 2 2 . . 1 . . . . . 1 1 1 1 1 2 2 2 3 Hottest 196 | 60 60 . . 36 . . . . . 43 43 43 60 60 132 196 92 174 Shots Fired 340 | 6 32 . . 3 . . . . . 1 3 15 8 12 73 25 12 150 Gun 131 | 6 32 . . . . . . . . . . . 2 2 20 1 . 68 Cannon 103 | . . . . . . . . . . . . . . . 25 18 . 60 Launcher 86 | . . . . 3 . . . . . 1 3 15 . 3 24 5 12 20 Special 20 | . . . . . . . . . . . . . 6 7 4 1 . 2 Kinetic 139 | 3 21 . . . . . . . . . . . . . 25 10 . 80 Thermal 40 | . . . . . . . . . . . . . . . . 8 . 32 Explosive 72 | . . . . 3 . . . . . 1 3 15 6 10 28 4 . 2 Electromagnetic 61 | 3 11 . . . . . . . . . . . . . . 3 12 32 Entropic 28 | . . . . . . . . . . . . . 2 2 20 . . 4 Robot Hit Streak 15 | 3 6 . . 5 . . . . . 6 . 7 3 4 14 14 6 15 Robot Miss Streak 6 | 1 3 . . . . . . . . . . 3 2 1 6 5 1 4 Penetration Max 1 | . . . . . . . . . . . . . . . . . . 1 Secondary Targets 1 | . 1 . . . . . . . . . . . . . . . . . Max Gunslinging Chain 1 | . 1 . . . . . . . . . . . . . . . . . Shots Hit Robots 239 | 4 16 . . 8 1 . . . 1 1 . 4 2 6 59 30 7 100 Core Hits 285 | 1 9 . . 11 . . . . 1 1 8 21 30 17 63 34 7 82 Critical Kills 1 | . . . . . . . . . . . . . . . . . . 1 Critical Parts Destroyed 6 | . . . . 1 . . . . . . . . . . 2 . . 3 Critical Strikes 20 | . . . . 1 . . . . . . . . . 4 7 . . 8 Destroy 2 | . . . . . . . . . . . . . . . . . . 2 Blast 5 | . . . . . . . . . . . . . . . 1 . . 4 Smash 1 | . . . . 1 . . . . . . . . . . . . . . Sever 4 | . . . . . . . . . . . . . . 4 . . . . Impale 4 | . . . . . . . . . . . . . . . 4 . . . Detonate 4 | . . . . . . . . . . . . . . . 2 . . 2 Melee Attacks 133 | . . 5 12 10 4 . . . 3 1 2 6 . 1 52 19 3 15 Impact 23 | . . 5 12 6 . . . . . . . . . . . . . . Slashing 8 | . . . . 4 4 . . . . . . . . . . . . . Piercing 102 | . . . . . . . . . 3 1 2 6 . 1 52 19 3 15 Sneak Attacks 18 | . . . . 5 . . . . . . . . . 1 5 3 1 3 Combat Hostiles . | . . . . . . . . . . . . . . . . . . . Follow-up Attacks . | . . . . . . . . . . . . . . . . . . . Damage Inflicted 26495 | 45 189 . . 750 64 . . . 70 84 519 1343 3435 1781 5250 3606 642 8717 Guns 2833 | 45 184 . . . . . . . . . . . 103 109 804 30 . 1558 Cannons 3639 | . . . . . . . . . . . . . . . 838 771 . 2030 Explosions 16925 | . . . . 197 . . . . . 84 519 1343 3239 1347 2731 2102 561 4802 Melee 2579 | . . . . 553 64 . . . 70 . . . . 78 823 670 81 240 Ramming 11 | . 5 . . . . . . . . . . . . . . . . 6 Kinetic 3606 | 17 63 . . . . . . . . . . . . . 838 544 . 2144 Thermal 2407 | . . . . . . . . . . . . . . . 207 227 . 1973 Explosive 12567 | . . . . 197 . . . . . 84 519 1343 3239 1347 2524 1865 . 1449 Electromagnetic 3627 | 28 121 . . . . . . . . . . . . . . 267 561 2650 Impact 396 | . . . . 396 . . . . . . . . . . . . . . Slashing 729 | . . . . 157 64 . . . . . . . 93 247 54 33 . 81 Piercing 1962 | . . . . . . . . . 70 . . . . 78 823 670 81 240 Entropic 1190 | . . . . . . . . . . . . . 103 109 804 . . 174 Highest Corruption 38 | . . . . . . . . . . . . 1 1 6 18 20 3 38 Average Corruption 8 | . . . . . . . . . . . . 1 1 5 7 12 3 15 Corruption Purged 10 | . . . . . . . . . . . . . . . 10 . . . Corruption Blocked 18 | . . . . . . . . . . . . . . . . . 18 . Effects 146 | . . . . . . . . . . . . . . 12 45 28 14 47 Message Errors 44 | . . . . . . . . . . . . . . 4 14 5 6 15 Matter Fused 29 | . . . . . . . . . . . . . . 2 8 7 1 11 Heat Flow Errors 15 | . . . . . . . . . . . . . . 2 4 3 2 4 Energy Discharges 13 | . . . . . . . . . . . . . . . 5 . 3 5 Parts Rejected 3 | . . . . . . . . . . . . . . . 1 1 . 1 Parts Fused 1 | . . . . . . . . . . . . . . . 1 . . . Data Loss (minor) 17 | . . . . . . . . . . . . . . 2 4 3 1 7 Data Loss (major) 10 | . . . . . . . . . . . . . . 2 2 3 1 2 Misfires 3 | . . . . . . . . . . . . . . . 2 1 . . Alerts 5 | . . . . . . . . . . . . . . . 1 3 . 1 Misdirections 1 | . . . . . . . . . . . . . . . . 1 . . Weapon Failures 5 | . . . . . . . . . . . . . . . 3 1 . 1 Overload Shots . | . . . . . . . . . . . . . . . . . . . Overflow Damage 1446 | . . . . 264 29 . . . . . 28 80 148 60 179 219 48 391 Projectiles 264 | . . . . . . . . . . . . . . . 36 46 . 182 Explosions 741 | . . . . . . . . . . . 28 80 148 60 141 93 48 143 Melee 441 | . . . . 264 29 . . . . . . . . . 2 80 . 66 Knockbacks 12 | . . . . 1 . . . . . . . . . . 3 2 . 6 Impact 1 | . . . . 1 . . . . . . . . . . . . . . Kinetic 11 | . . . . . . . . . . . . . . . 3 2 . 6 Secondary . | . . . . . . . . . . . . . . . . . . . Self-Inflicted Damage 761 | . . . . . . . . . . . 52 31 . . 249 45 21 363 Shots 25 | . . . . . . . . . . . 1 2 . . 6 2 4 10 Rammed 2 | . . . . . . . . . . . . . . . . . . 2 Targets Rammed 3 | . 1 . . . . . . . . . . . . . . . . 2 Kicked 1 | . 1 . . . . . . . . . . . . . . . . . Crushed . | . . . . . . . . . . . . . . . . . . . Highest Temperature 595 | 20 26 . 3 . . . . . 595 38 210 . . 113 176 186 74 194 Average Temperature 72 | 15 11 . 2 . . . . . 81 10 131 . . 32 38 115 42 87 Received Heat Transfer 1002 | . 6 . 9 21 . . . . . . 51 67 45 118 9 267 9 400 Effects 2 | . . . . . . . . . 2 . . . . . . . . . Shutdowns 1 | . . . . . . . . . 1 . . . . . . . . . Matter Decay 1 | . . . . . . . . . 1 . . . . . . . . . Siege Activations . | . . . . . . . . . . . . . . . . . . . Robots Corrupted 9 | . . . . . . . . . . . . . . . . . 2 7 Combat Hostiles 9 | . . . . . . . . . . . . . . . . . 2 7 Parts Fried 24 | . . . . 7 . . . . . . . . . . . . 6 11 Impact Corruptions 4 | . . . . 4 . . . . . . . . . . . . . . Robots Melted . | . . . . . . . . . . . . . . . . . . . Combat Hostiles . | . . . . . . . . . . . . . . . . . . . Parts Melted 2 | . . . . . . . . . . . . . . . . . . 2 Heat Transferred 1612 | . . . . . . . . . . . . . . . 150 185 . 1277 Parts Sabotaged 2 | . . . . . . . . . . . . . . . . . . 2 Parts Stolen . | . . . . . . . . . . . . . . . . . . . Parts Stripped . | . . . . . . . . . . . . . . . . . . . Power Chain Reactions 3 | . . . . . . . . . . . . . . . . . . 3 Missiles Intercepted . | . . . . . . . . . . . . . . . . . . . Alert | -11 -10 -9 -8 -7 -6 -6 -6 -6 -5 -4 -4 -4 -4 -3 -3 -3 -2 -1 ------- Run | Jun Mat Mat Mat Fac Fac Was Fac DSF Fac Fac Upp Upp War Pro Res Qua Res Acc Peak Influence 1198 | 5 199 21 101 385 138 48 47 37 52 29 . . . . 822 830 458 1198 Initial 408 | . 3 2 8 45 98 48 33 32 18 25 . . . . . 408 365 1 Average 307 | 3 77 15 44 253 131 48 39 25 45 26 . . . . 434 590 241 353 Maximum Alert Level 4 | . . . . 1 . . . . . . . . . . 3 3 2 4 Low Security (%) 50 | 100 100 100 100 31 100 100 100 100 100 100 . . . . 32 . 37 60 Level 1 15 | . . . . 68 . . . . . . . . . . 15 . 39 3 Level 2 16 | . . . . . . . . . . . . . . . 13 68 23 6 Level 3 17 | . . . . . . . . . . . . . . . 38 31 . 27 Level 4 . | . . . . . . . . . . . . . . . . . . 2 Level 5 . | . . . . . . . . . . . . . . . . . . . High Security . | . . . . . . . . . . . . . . . . . . . Max Security . | . . . . . . . . . . . . . . . . . . . Squads Dispatched 24 | . 1 1 1 . . . . . 1 . . 1 . . 7 4 . 8 Investigation 2 | . . . 1 . . . . . . . . . . . 1 . . . Extermination 9 | . . . . . . . . . 1 . . . . . 3 2 . 3 Reinforcement 9 | . 1 1 . . . . . . . . . . . . 3 2 . 2 Assault 4 | . . . . . . . . . . . . 1 . . . . . 3 Garrison . | . . . . . . . . . . . . . . . . . . . Intercept . | . . . . . . . . . . . . . . . . . . . Searches Triggered . | . . . . . . . . . . . . . . . . . . . Construction Impeded 3 | . . . . . . . . . . . . . . . 2 . . 1 Haulers Reinforced . | . . . . . . . . . . . . . . . . . . . Active Scanning Responses . | . . . . . . . . . . . . . . . . . . . Cargo Convoy Interrupts . | . . . . . . . . . . . . . . . . . . . Stealth | -11 -10 -9 -8 -7 -6 -6 -6 -6 -5 -4 -4 -4 -4 -3 -3 -3 -2 -1 --------- Run | Jun Mat Mat Mat Fac Fac Was Fac DSF Fac Fac Upp Upp War Pro Res Qua Res Acc Distress Signals 20 | . . . 2 2 . . . . . . . . . . 3 . 8 5 Communications Jammed . | . . . . . . . . . . . . . . . . . . . Distress Signals . | . . . . . . . . . . . . . . . . . . . Times Spotted 249 | . 11 2 6 11 1 . . 1 1 1 13 22 22 14 39 21 6 78 Peak Tracking Total 16 | . 3 2 5 6 1 . . 1 1 1 6 15 16 7 6 7 3 12 Tactical Retreats 32 | . . . 1 5 . . . 1 . . 5 5 . 3 1 . . 11 Traps | -11 -10 -9 -8 -7 -6 -6 -6 -6 -5 -4 -4 -4 -4 -3 -3 -3 -2 -1 ------- Run | Jun Mat Mat Mat Fac Fac Was Fac DSF Fac Fac Upp Upp War Pro Res Qua Res Acc Traps Triggered 8 | . . . 1 . 1 . . 1 3 . . . . . . . . 2 Indirectly . | . . . . . . . . . . . . . . . . . . . Trap Hack Attempts . | . . . . . . . . . . . . . . . . . . . Triggered . | . . . . . . . . . . . . . . . . . . . Disarmed . | . . . . . . . . . . . . . . . . . . . Reprogrammed . | . . . . . . . . . . . . . . . . . . . Reused . | . . . . . . . . . . . . . . . . . . . Traps Extracted . | . . . . . . . . . . . . . . . . . . . Installed . | . . . . . . . . . . . . . . . . . . . Triggered 13 | . . . . . . . . . . . . 1 11 1 . . . . Machines | -11 -10 -9 -8 -7 -6 -6 -6 -6 -5 -4 -4 -4 -4 -3 -3 -3 -2 -1 ---------- Run | Jun Mat Mat Mat Fac Fac Was Fac DSF Fac Fac Upp Upp War Pro Res Qua Res Acc Machines Disabled 19 | . . . . 1 . . . . . . . . . . 5 7 . 6 Max in Single Turn 4 | . . . . 1 . . . . . . . . . . 1 4 . 2 Garrison Access 2 | . . . 1 . . . . . . . . . . . . . 1 . Machines Repaired . | . . . . . . . . . . . . . . . . . . . Machines Sabotaged . | . . . . . . . . . . . . . . . . . . . Overloaded Fab Kills . | . . . . . . . . . . . . . . . . . . . Hacking | -11 -10 -9 -8 -7 -6 -6 -6 -6 -5 -4 -4 -4 -4 -3 -3 -3 -2 -1 --------- Run | Jun Mat Mat Mat Fac Fac Was Fac DSF Fac Fac Upp Upp War Pro Res Qua Res Acc Machines Accessed 33 | . 4 1 3 2 . . 2 . 5 . 1 . 11 . 1 2 . 1 Terminals 21 | . 4 1 2 2 . . 2 . 5 . 1 . . . 1 2 . 1 Fabricators . | . . . . . . . . . . . . . . . . . . . Repair Stations . | . . . . . . . . . . . . . . . . . . . Recycling Units . | . . . . . . . . . . . . . . . . . . . Scanalyzers . | . . . . . . . . . . . . . . . . . . . Garrison Access 1 | . . . 1 . . . . . . . . . . . . . . . Total Hacks 69 | . 7 3 6 3 . . 2 . 14 . 1 . 24 . 4 4 . 1 Successful 38 | . 2 . 3 . . . 2 . 3 . 1 . 24 . 1 2 . . Failed 31 | . 5 3 3 3 . . . . 11 . . . . . 3 2 . 1 Catastrophic 11 | . 5 1 2 1 . . . . 1 . . . . . . . . 1 Database Lockouts . | . . . . . . . . . . . . . . . . . . . Manual 28 | . 6 3 4 1 . . 1 . 11 . 1 . . . . . . 1 Terminals 43 | . 7 3 4 3 . . 2 . 14 . 1 . . . 4 4 . 1 Fabricators . | . . . . . . . . . . . . . . . . . . . Repair Stations . | . . . . . . . . . . . . . . . . . . . Recycling Units . | . . . . . . . . . . . . . . . . . . . Scanalyzers . | . . . . . . . . . . . . . . . . . . . Garrison Access 2 | . . . 2 . . . . . . . . . . . . . . . Terminal Hacks 32 | . 1 . . . . . 1 . 2 . 1 . 24 . 1 2 . . Record 26 | . . . . . . . . . . . 1 . 23 . . 2 . . Open Door 2 | . . . . . . . . . . . . . 1 . 1 . . . Open DSF 2 | . . . . . . . 1 . 1 . . . . . . . . . Branch Access Points 2 | . 1 . . . . . . . 1 . . . . . . . . . Fabricator Hacks . | . . . . . . . . . . . . . . . . . . . Repair Station Hacks . | . . . . . . . . . . . . . . . . . . . Recycling Unit Hacks . | . . . . . . . . . . . . . . . . . . . Scanalyzer . | . . . . . . . . . . . . . . . . . . . Garrison Access Hacks 1 | . . . 1 . . . . . . . . . . . . . . . Seal Access 1 | . . . 1 . . . . . . . . . . . . . . . Unauthorized Hacks 5 | . 1 . 2 . . . 1 . 1 . . . . . . . . . Terminals 5 | . 1 . 2 . . . 1 . 1 . . . . . . . . . Botnet 5 | . 1 . 2 . . . 1 . 1 . . . . . . . . . Fabricators . | . . . . . . . . . . . . . . . . . . . Repair Stations . | . . . . . . . . . . . . . . . . . . . Recycling Units . | . . . . . . . . . . . . . . . . . . . Scanalyzers . | . . . . . . . . . . . . . . . . . . . Garrison Access . | . . . . . . . . . . . . . . . . . . . Data Cores Recovered . | . . . . . . . . . . . . . . . . . . . Used . | . . . . . . . . . . . . . . . . . . . Hacking Detections 16 | . 4 1 2 2 . . 1 . 4 . . . . . 1 . . 1 Full Trace Events 3 | . . . 2 . . . . . . . . . . . 1 . . . Feedback Events . | . . . . . . . . . . . . . . . . . . . Feedback Blocked . | . . . . . . . . . . . . . . . . . . . Robot Schematics Acquired . | . . . . . . . . . . . . . . . . . . . Robots Built . | . . . . . . . . . . . . . . . . . . . Authchips . | . . . . . . . . . . . . . . . . . . . Time . | . . . . . . . . . . . . . . . . . . . Total Robot Build Rating . | . . . . . . . . . . . . . . . . . . . Part Schematics Acquired . | . . . . . . . . . . . . . . . . . . . Parts Built . | . . . . . . . . . . . . . . . . . . . Authchips . | . . . . . . . . . . . . . . . . . . . Time . | . . . . . . . . . . . . . . . . . . . Total Part Build Rating . | . . . . . . . . . . . . . . . . . . . Parts Repaired . | . . . . . . . . . . . . . . . . . . . Time . | . . . . . . . . . . . . . . . . . . . Parts Recycled . | . . . . . . . . . . . . . . . . . . . Recycled Matter . | . . . . . . . . . . . . . . . . . . . Retrieved Matter . | . . . . . . . . . . . . . . . . . . . Retrieved Components . | . . . . . . . . . . . . . . . . . . . Parts Scanalyzed . | . . . . . . . . . . . . . . . . . . . Part Schematics Acquired . | . . . . . . . . . . . . . . . . . . . Parts Damaged . | . . . . . . . . . . . . . . . . . . . Bothacking | -11 -10 -9 -8 -7 -6 -6 -6 -6 -5 -4 -4 -4 -4 -3 -3 -3 -2 -1 ------------ Run | Jun Mat Mat Mat Fac Fac Was Fac DSF Fac Fac Upp Upp War Pro Res Qua Res Acc Used RIF Installer . | . . . . . . . . . . . . . . . . . . . Robots Hacked . | . . . . . . . . . . . . . . . . . . . Non-combat . | . . . . . . . . . . . . . . . . . . . Combat . | . . . . . . . . . . . . . . . . . . . Robot Hacks Applied . | . . . . . . . . . . . . . . . . . . . Relay Couplers Released 2 | . . . . . . . . . . . . . . . . . 2 . Machine Destruction 2 | . . . . . . . . . . . . . . . . . 2 . Fabnet Peak Effective % . | . . . . . . . . . . . . . . . . . . . Robots Rewired . | . . . . . . . . . . . . . . . . . . . Allies Hacked . | . . . . . . . . . . . . . . . . . . . Hacks Repelled . | . . . . . . . . . . . . . . . . . . . Allies | -11 -10 -9 -8 -7 -6 -6 -6 -6 -5 -4 -4 -4 -4 -3 -3 -3 -2 -1 -------- Run | Jun Mat Mat Mat Fac Fac Was Fac DSF Fac Fac Upp Upp War Pro Res Qua Res Acc Total Allies . | . . . . . . . . . . . . . . . . . . . Largest Group . | . . . . . . . . . . . . . . . . . . . Highest-Rated Group . | . . . . . . . . . . . . . . . . . . . Highest-Rated Ally . | . . . . . . . . . . . . . . . . . . . Total Orders 14 | . . . . . . . . . . . . 1 . . 5 2 4 2 EXPLORE 14 | . . . . . . . . . . . . 1 . . 5 2 4 2 Ally Attacks . | . . . . . . . . . . . . . . . . . . . Total Damage . | . . . . . . . . . . . . . . . . . . . Kills . | . . . . . . . . . . . . . . . . . . . Allies Corrupted . | . . . . . . . . . . . . . . . . . . . Allies Melted 2 | . . . . . . . . . . . . . . . . . 2 . Intel | -11 -10 -9 -8 -7 -6 -6 -6 -6 -5 -4 -4 -4 -4 -3 -3 -3 -2 -1 ------- Run | Jun Mat Mat Mat Fac Fac Was Fac DSF Fac Fac Upp Upp War Pro Res Qua Res Acc Robot Analysis Total . | . . . . . . . . . . . . . . . . . . . Derelict Logs Recovered 3 | . . . . . . . . . . . 2 1 . . . . . . Drone Launches 16 | . . . . . . . . . . . . 1 . . 5 2 6 2 Drone Recoveries 7 | . . . . . . . . . . . . . . . 2 1 3 1 Exploration | -11 -10 -9 -8 -7 -6 -6 -6 -6 -5 -4 -4 -4 -4 -3 -3 -3 -2 -1 ------------- Run | Jun Mat Mat Mat Fac Fac Was Fac DSF Fac Fac Upp Upp War Pro Res Qua Res Acc Turns Passed 9007 | 49 450 324 176 421 113 41 17 39 297 71 436 173 443 731 1678 818 1273 1457 Spaces Moved 9235 | 32 545 469 434 1265 362 114 61 109 673 140 996 356 971 435 830 306 358 779 Core 280 | . 1 . . . . . . . . . . . 6 2 . . . 271 Treads 929 | . . . . . . . . . . . . . . . 114 69 238 508 Legs 170 | 32 138 . . . . . . . . . . . . . . . . . Wheels 1073 | . . . . . . . . . . . . . . . 716 237 120 . Hover . | . . . . . . . . . . . . . . . . . . . Flight 6783 | . 406 469 434 1265 362 114 61 109 673 140 996 356 965 433 . . . . Fastest Speed 22 | 120 37 34 28 26 26 26 27 27 24 22 22 25 29 27 108 150 160 50 Average Speed 66 | 120 58 34 29 26 26 26 27 27 24 22 23 25 31 144 133 203 238 123 Slowest Speed 450 | 120 120 34 34 28 26 27 27 27 24 24 26 29 250 450 175 250 330 165 Overloaded Moves . | . . . . . . . . . . . . . . . . . . . Propulsion Burnouts . | . . . . . . . . . . . . . . . . . . . Robots Hopped 43 | . 3 3 8 13 1 . . . 8 . 3 . 2 2 . . . . Cave-ins Triggered 2 | . . . 1 . . . . . . . . . . . . . . 1 Exploration Rate (%) 44 | 3 77 25 40 26 11 75 2 94 17 4 94 82 92 64 26 44 47 25 Regions Visited 18 Branch Regions 5 Pre-discovered Areas . | . . . . . . . . . . . . . . . . . . . Known Exits Taken 5 | . . . . . . . 1 . . . . 1 . 1 1 . 1 . Unknown Exits Taken 10 | 1 1 1 1 1 . . . . 1 1 1 . 1 . . 1 . . Scrap Searched 6 | . . . . . . . . . . . 2 1 . 3 . . . . Spaces Dug 128 | . . 5 12 2 3 . . . . 1 2 18 . . 68 3 2 12 Terrain Destroyed 1022 | . . 5 12 13 3 . . . . 2 48 163 61 109 355 97 2 152 Melee 72 | . . 5 12 2 3 . . . . 1 2 5 . . 25 3 2 12 Projectile 50 | . . . . . . . . . . . . . 3 2 14 6 . 25 AOE 899 | . . . . 11 . . . . . 1 46 158 58 107 316 88 . 114 Terrain Rammed . | . . . . . . . . . . . . . . . . . . . Walls Destroyed . | . . . . . . . . . . . . . . . . . . . Machines Disabled . | . . . . . . . . . . . . . . . . . . . Actions | -11 -10 -9 -8 -7 -6 -6 -6 -6 -5 -4 -4 -4 -4 -3 -3 -3 -2 -1 --------- Run | Jun Mat Mat Mat Fac Fac Was Fac DSF Fac Fac Upp Upp War Pro Res Qua Res Acc Total 11409 | 36 647 620 453 1318 373 124 60 120 791 176 1186 408 1105 521 1203 431 757 1080 Wait 1448 | . 63 143 4 31 . 2 . . 103 25 181 19 105 57 157 64 334 160 Move 9138 | 31 538 462 418 1241 360 113 60 108 658 139 989 355 967 430 829 305 357 778 Hop 36 | . 3 3 7 10 1 . . . 6 . 3 . 1 2 . . . . Pick Up 74 | 1 5 3 4 4 2 1 . 3 2 3 . . 2 2 21 9 6 6 Fast Attach 100 | 1 7 . 2 5 3 1 . 2 8 2 . 1 4 2 32 4 18 8 Attach 60 | . 1 3 . . . . . . 3 2 2 7 5 5 9 6 3 14 Detach 39 | . 1 . . 1 . . . . 4 . 4 5 7 3 6 3 5 . Swap 71 | . 1 1 1 4 . 4 . 2 2 . . . . 3 21 7 8 17 Drop 86 | . 6 . 5 9 3 3 . 5 2 3 2 . 6 4 21 . 16 1 Fire 220 | 3 21 . . 3 . . . . . 1 3 15 8 12 55 14 7 78 Melee 133 | . . 5 12 10 4 . . . 3 1 2 6 . 1 52 19 3 15 Ram . | . . . . . . . . . . . . . . . . . . . Kick 1 | . 1 . . . . . . . . . . . . . . . . . Crush 2 | . . . . . . . . . . . . . . . . . . 2 Escape Stasis 1 | . . . . . . . . . . . . . . . . . . 1 Rewire . | . . . . . . . . . . . . . . . . . . . Trap . | . . . . . . . . . . . . . . . . . . . Miscellaneous . | . . . . . . . . . . . . . . . . . . . Route ------- -11/Junkyard -10/Materials (discovered 3 exits: *Mat / *Min x2) -9/Materials -8/Materials -7/Factory (discovered 3 exits: [*Fac] / [*Low x2]) -6/Factory -6/Waste -6/Factory -6/DSF -5/Factory (discovered 5 exits: [*Fac] / Upp x2 / Ext x2) -4/Factory -4/Upper Caves -4/Upper Caves (discovered 2 exits: *Res / *War) -4/Warlord -3/Proximity Caves -3/Research -3/Quarantine -2/Research (discovered 2 exits: *Acc x2) -1/Access History --------- Turn | Location | Event 1 | -11/Junkyard | Discovered new exit (range 3) 50 | -11/Junkyard | Entered Materials 66 | -10/Materials | Identified exit to Mines 311 | -10/Materials | Build established: Mutant 312 | -10/Materials | Released all parts (7) 496 | -10/Materials | Discovered new exit (range 10) 500 | -10/Materials | Entered another Materials area 500 | -9/Materials | Evolved 2 slots: Propulsion x1, Utility x1 800 | -9/Materials | Build established: Scavenger-Scout 822 | -9/Materials | Discovered new exit (range 3) 824 | -9/Materials | Entered another Materials area 824 | -8/Materials | Evolved 2 slots: Propulsion x1, Utility x1 929 | -8/Materials | Crushed by falling debris 997 | -8/Materials | Discovered new exit (range 5) 1000 | -8/Materials | Entered Factory 1000 | -7/Factory | Evolved 2 slots: Utility x2 1128 | -7/Factory | Discovered new exit (range 3) 1130 | -7/Factory | Discovered new exit (range 17) 1407 | -7/Factory | Discovered new exit (range 11) 1421 | -7/Factory | Entered another Factory area 1421 | -6/Factory | Evolved 2 slots: Utility x2 1460 | -6/Factory | Discovered new exit (range 17) 1534 | -6/Factory | Sucked down chute 1534 | -6/Factory | Entered Waste 1534 | -6/Waste | The area was eerily silent 1549 | -6/Waste | Found Enh. Force Lance 1552 | -6/Waste | Discovered new exit (range 18) 1575 | -6/Waste | Entered Factory 1591 | -6/Factory | Identified exit to DSF 1592 | -6/Factory | Entered DSF 1614 | -6/DSF | Discovered new exit (range 14) 1621 | -6/DSF | Additional patrols routed to DSF 1623 | -6/DSF | Identified exit to Factory 1631 | -6/DSF | Entered Factory 1631 | -5/Factory | Evolved 2 slots: Power x1, Propulsion x1 1665 | -5/Factory | Identified exit to Upper Caves 1665 | -5/Factory | Identified exit to Extension 1755 | -5/Factory | Found Prototype Processor 1755 | -5/Factory | Identified Exp. Targeting Computer 1788 | -5/Factory | Build established: Scout 1926 | -5/Factory | Discovered new exit (range 7) 1928 | -5/Factory | Entered another Factory area 1928 | -4/Factory | Evolved 2 slots: Propulsion x1, Utility x1 1963 | -4/Factory | Discovered new exit (range 18) 1999 | -4/Factory | Entered Upper Caves 2013 | -4/Upper Caves | Attracted the attention of an 0b10 checkpoint 2183 | -4/Upper Caves | Spotted B-86 Titan 2315 | -4/Upper Caves | Learned location of 1 exit from Proximity Caves 2410 | -4/Upper Caves | Learned location of 1 exit from Research 2424 | -4/Upper Caves | Discovered new exit (range 12) 2435 | -4/Upper Caves | Entered another Upper Caves area 2438 | -4/Upper Caves | Discovered new exit (range 8) 2464 | -4/Upper Caves | Identified exit to Warlord 2479 | -4/Upper Caves | Destroyed 12 combat bots 2481 | -4/Upper Caves | Lost 3 parts (1p1n1u) 2493 | -4/Upper Caves | Attracted the attention of an 0b10 outpost 2519 | -4/Upper Caves | Attracted the attention of an 0b10 checkpoint 2608 | -4/Upper Caves | Entered Warlord 2624 | -4/Warlord | Discovered new exit (range 15) 2625 | -4/Warlord | Lost 6 parts (1p3n1u1w) 2630 | -4/Warlord | System corruption cleaned by Quarantine Array 2725 | -4/Warlord | Met Warlord 2750 | -4/Warlord | Warlord's base attacked by MAIN.C 2775 | -4/Warlord | Found Prototype Special Weapon 2775 | -4/Warlord | Identified RU-N14's Throwing Claymores v3 2777 | -4/Warlord | Found RU-N14's Throwing Claymores v3 2778 | -4/Warlord | Found RU-N14's Throwing Claymores v3 2782 | -4/Warlord | Found RU-N14's Throwing Claymores v3 2814 | -4/Warlord | Found Prototype Energy Gun 2814 | -4/Warlord | Identified Vortex Shotgun 2999 | -4/Warlord | Warlord forces counterattacked 3035 | -4/Warlord | Destroyed 8 combat bots 3051 | -4/Warlord | Entered Proximity Caves 3052 | -3/Proximity Caves | Identified exit to Research 3179 | -3/Proximity Caves | Lost 4 parts (1p2n1u) 3290 | -3/Proximity Caves | Core integrity fell below 50% 3457 | -3/Proximity Caves | Build established: Mutant 3782 | -3/Proximity Caves | Entered Research 3782 | -3/Research | Evolved 2 slots: Utility x1, Weapon x1 3783 | -3/Research | Identified exit to Quarantine 3813 | -3/Research | Lost 3 parts (1p2u) 4185 | -3/Research | Found Fusion Bomb Launcher 4260 | -3/Research | Found Fusion Bomb Launcher 4395 | -3/Research | Lost 5 parts (1p1n3u) 4537 | -3/Research | Build established: Scavenger-Mutant 4654 | -3/Research | Spotted B-86 Titan 4940 | -3/Research | Found Prototype Launcher 4940 | -3/Research | Identified Tesla Bomb Launcher 5023 | -3/Research | System corruption reached 10% 5068 | -3/Research | Found Faulty Tesla Bomb Launcher 5071 | -3/Research | Found Tesla Bomb Launcher 5077 | -3/Research | Lost 7 parts (1p2n3u1w) 5094 | -3/Research | Found Prototype Processor 5094 | -3/Research | Identified Exp. Target Analyzer 5264 | -3/Research | Found Enh. Force Lance 5402 | -3/Research | Build established: Scavenger-Assassin 5460 | -3/Research | Entered Quarantine 5556 | -3/Quarantine | Found Alien Artifact 5556 | -3/Quarantine | Identified Terrabomb 5556 | -3/Quarantine | Used Terrabomb 5570 | -3/Quarantine | Found Terrabomb 5589 | -3/Quarantine | Found Terrabomb 5973 | -3/Quarantine | Discovered new exit (range 41) 6123 | -3/Quarantine | Destroyed 7 combat bots 6126 | -3/Quarantine | Lost 5 parts (1n2u2w) 6232 | -3/Quarantine | Found Alien Artifact 6278 | -3/Quarantine | Entered Research 6278 | -2/Research | Warlord forces began assault on 0b10 6278 | -2/Research | Evolved 2 slots: Utility x2 6278 | -2/Research | Identified Subatomic Replicator 6307 | -2/Research | Lost 3 parts (1u2w) 6337 | -2/Research | Build established: Scavenger-Mutant 6356 | -2/Research | Found Prototype Processor 6356 | -2/Research | Identified Exp. Melee Analysis Suite 6388 | -2/Research | Research machine network offline 6551 | -2/Research | Spotted Executioner 6591 | -2/Research | Discovered new exit (range 20) 6708 | -2/Research | Identified exit to Access 6862 | -2/Research | Borebot progress halted 6907 | -2/Research | Discovered exit to Access (range 147) 6940 | -2/Research | Borebot progress halted 6989 | -2/Research | Borebot progress halted 7263 | -2/Research | Met up with Warlord 7279 | -2/Research | Warlord invited to help at Command 7551 | -2/Research | Entered Access 7551 | -1/Access | Evolved 2 slots: Utility x2 7711 | -1/Access | Build established: Scavenger-Assassin 8480 | -1/Access | Destroyed 7 combat bots 8485 | -1/Access | Lost 5 parts (1p4u) 8527 | -1/Access | System corruption reached 10% 8601 | -1/Access | First assault squad dispatched 8604 | -1/Access | Destroyed 11 combat bots 8731 | -1/Access | System corruption reached 30% 8752 | -1/Access | Destroyed 7 combat bots 8770 | -1/Access | Lost 9 parts (2p1n5u1w) 8870 | -1/Access | Released all parts (9) 8900 | -1/Access | Lost 8 parts (1p1n1u5w) 8942 | -1/Access | Core integrity fell below 50% 8978 | -1/Access | Used Terrabomb 8981 | -1/Access | Crushed by falling debris 8993 | -1/Access | Core integrity fell below 20% 9008 | -1/Access | Destroyed by S-43 Plague with Heavy Machine Gun Last Messages --------------- 08879_ U-05 Engineer lays Concrete. 08887_ System corrupted: Energy discharge (-31). 08899_ Connecting with Terminal... 08902_ 8WGQ&AKL6R,CNQJKM VCFSM4%ZXEN 08918_ System corrupted: Matter fused (-9). 08925_ Penetrated by Slug. 08926_ Slug penetrates Wall. 08926_ Penetrated by Slug. 08929_ Slug penetrates Wall. 08933_ System corrupted: Component data lost. 08941_ Penetrated by Slug. 08948_ 9TEGMRS6OY93TX>9B9PY MM/OY2HS 08963_ K0CWGER4J: R/L IU:RH 08968_ Penetrated by Slug. 08976_ Slug penetrates Wall. 08978_ System corrupted: Heat flow error (+139). 08978_ Terrabomb activated. 08981_ The unstable cave ceiling collapses. 08981_ Crushed by falling debris. 09006_ U-05 Engineer destroyed. Map ----- +----------------------------------------------------+ | ????????????????????????????? #???? | | ????????????????????????????? #???? | | ????????????????????????????? #???? | | ????????????????????????????? ##### | | ????????????????????????????? # | | ????????????????????????????? # | | ????????????????????????????? # | | ??????????????????????????????######## + | | ?????????????????????????????????????# # | | ?????????????????????????????????????# # | | ?????????????????????????????????????# # | | ?????????????????????????????????????# # | | ?????????????????????????????????????# # | | ????????????????#??????#??????######## ##### | | ?????????????? ####### ?????# | | ?????????????? ?????# | | ??????????????? #????# | | ??????????????? #????# | | ???????????????G"" #????# ! | | ????????????? " " #????# % | | ???????????? " " ###### s | | ??????????? k ############ | | ???????????p #??????????? | | ?????????? #??????????? | | ?????????? #??????????? | | ?????????? u @ #??????????? | | ?????????? #??????????? | | ?????????? #??????????? | | ???????????#########+############ #####??????????? | | ??????????????# #????# #??????????????? | | ??????????????# #????# #??????????????? | | ??????????????# #????# #?????????????? | | ??????????????# ###### #?????????????# | | ??????????????# + #?????????????# | | ??????????????# # ####?????????????# | | ??????????????# # #?????############# | | ??????????????# " " + #?????# | | ??????????????# "T" ### #?????# | | ??????????????# """ #?# ####### ] | | ??????????????# #?# # = = = | | ??????????????# #?# # * *!% | | ??????????????###/##########?# # ! %[/%= | | ????????????????# ???????????# + = = =%/ | | ????????????????# ???????????# # *= [/% | | ????????????????############## # =[%* | | ????????????????#= # # **!%!! | | ????????????????# # # *=%=%* | | ????????????????# # # !%|=! | | ????????????????# # ##########+## | | ????????????????# "" + # # #!#? | +----------------------------------------------------+ Best States ------------- Heat Dissipation 121 Energy Generation 47 Energy Capacity 590 Matter Stores 300 Matter Capacity 300 Sight Range 20 Robot Scan Range 16 Terrain Scan Range 24 Terrain Scan Density 285 Cloak Strength 3 Base Temperature (-) 200 Armor Coverage 600 Utility Shielding 66 Point Defense Rating 240 Evasion (%) 73 Targeting Accuracy 6 Launcher Accuracy 40 Target Analysis 12 Recoil Reduction 6 Defensive Hacking 10 Item Schematics ----------------- None Robot Schematics ------------------ None Fabricated ------------ Nothing Alien Tech Used ----------------- Terrabomb Subatomic Replicator Achievements -------------- A Powerful Ally? All-out Warlord Charge!!! Challenges ------------ None Game ------ Seed ProcessingChipDriver Manual? 0 Play Time 03:37:43 Cumulative 66.0 hours Start 2023.08.05 @ 16:52:02 End 2023.08.06 @ 02:33:18 Sessions 5 Manual Loads 0 Difficulty Rogue Special Mode None Game No. 37 Rogue 37 Adventurer 0 Explorer 0 Win Type - Total 1 Types 1/0/0/0/0/0/0/0/0 Lore% 38 Gallery% 52 Achievement% 37 Wizard Run 0 Options --------- ASCII 0 Keyboard 1 Movement Numpad Keybinds 0 Fullscreen 1 Font 24/Smallcaps Map View 76x50 Tactical HUD 1 Map Filters NONE Filters NONE Steam 1 RUN: 1e2542ff-1f22-42b9-9b03-5549b613eaac